fUSD/lending_fUSD_20240517
["ID","MTS","AMOUNT","RATE_DAILY","PERIOD"]
[327259565,1715943033438,-368.051,0.000121,2]
[327259566,1715943033447,-6754.5911,0.000121,2]
[327259567,1715943033456,-333.19431843,0.000121,2]
[327259568,1715943033465,-5600.0,0.000121,4]
[327259569,1715943033474,-180.0,0.00012175,2]
[327259570,1715943033483,-193.4233,0.00012179,2]
[327259571,1715943033492,-469.4591,0.00012179,2]
[327259572,1715943033501,-174.0564,0.00012179,2]
[327259573,1715943033510,-105867.24697456,0.00012179,2]
[327259574,1715943033522,-670.28116184,0.00012179,2]
[327259575,1715943033532,-561.51132701,0.00012179,2]
[327259576,1715943033543,-363.20539468,0.00012179,2]
[327259577,1715943034566,-2684.51281324,0.00012179,2]
[327259580,1715943034577,-655.60712406,0.00012179,2]
[327259582,1715943034589,-9619.56610461,0.00012179,2]
[327259583,1715943034598,-5024.17602469,0.00012181,2]
[327259586,1715943034608,-23.82832156,0.00012189,2]
[327259588,1715943034619,-142.23564344,0.00012189,2]
[327259589,1715943034629,-124.71730559,0.0001219,2]
[327259591,1715943034641,-40.45524908,0.0001219,2]
[327259593,1715943034651,-742.69264593,0.00012192,2]
[327259594,1715943034664,-303.46735407,0.00012192,2]
[327259595,1715943034673,-163.38,0.00012192,2]
[327259596,1715943034683,-163.38,0.00012192,2]
[327259597,1715943034692,-163.38,0.00012192,2]
[327259598,1715943034701,-163.38,0.00012192,2]
[327259599,1715943034711,-163.38,0.00012192,2]
[327259600,1715943034720,-162.06,0.00012192,2]
[327259602,1715943034730,-445.74956789,0.00012198,2]
[327259617,1715943039902,-2875.0419189,0.00012198,2]
[327259619,1715943039915,-947.32329949,0.00012198,2]
[327259621,1715943039925,-882.82313316,0.00012198,2]
[327259624,1715943039935,-166.25309442,0.00012199,2]
[327259626,1715943039946,-203.51652583,0.00012199,2]
[327259627,1715943039955,-64301.0839471,0.000122,2]
[327259630,1715943039967,-585.89428871,0.000122,2]
[327259632,1715943039979,-110003.84854811,0.000122,2]
[327259634,1715943039991,-655.43396062,0.000122,2]
[327259635,1715943040003,-69453.73925546,0.000122,2]
[327259636,1715943040013,-165.1494,0.000122,2]
[327259637,1715943040023,-100000.0,0.000122,2]
[327259638,1715943040033,-1000.0,0.000122,2]
[327259639,1715943040042,-7400.0,0.000122,4]
[327259640,1715943040052,-463.61,0.00012204,2]
[327259641,1715943040062,-6678.9756587,0.00012228,2]
[327259642,1715943040071,-166.063965,0.00012279,2]
[327259643,1715943040081,-6678.97565869,0.00012289,2]
[327259644,1715943040095,-333.19431843,0.000123,2]
[327259645,1715943040105,-9300.0,0.000123,4]
[327259646,1715943040115,-500.0,0.00012328,2]
[327259647,1715943040125,-500.0,0.00012328,2]
[327259648,1715943040136,-500.0,0.00012328,2]
[327259649,1715943040146,-500.0,0.00012328,2]
[327259650,1715943040156,-500.0,0.00012328,2]
[327259651,1715943040168,-500.0,0.00012328,2]
[327259652,1715943040177,-545.89731521,0.00012328,2]
[327259653,1715943040186,-500.0,0.00012328,2]
[327259654,1715943040195,-500.0,0.00012328,2]
[327259655,1715943040203,-500.0,0.00012328,2]
[327259656,1715943040213,-510.54321273,0.00012328,2]
[327259657,1715943040222,-500.0,0.00012328,2]
[327259658,1715943040232,-500.0,0.00012328,2]
[327259659,1715943040242,-500.0,0.00012328,2]
[327259660,1715943040251,-500.0,0.00012328,2]
[327259661,1715943040261,-507.86309413,0.00012328,2]
[327259662,1715943040271,-500.0,0.00012328,2]
[327259663,1715943040280,-500.0,0.00012328,2]
[327259664,1715943040290,-500.0,0.00012328,2]
[327259665,1715943040299,-510.25897977,0.00012328,2]
[327259666,1715943040308,-500.0,0.00012328,2]
[327259667,1715943040318,-500.0,0.00012328,2]
[327259669,1715943040327,-500.0,0.00012328,2]
[327259670,1715943040336,-500.0,0.00012328,2]
[327259672,1715943040345,-515.84080533,0.00012328,2]
[327259674,1715943040354,-500.0,0.00012328,2]
[327259676,1715943040363,-500.0,0.00012328,2]
[327259678,1715943040372,-512.03336849,0.00012328,2]
[327259680,1715943040382,-500.0,0.00012328,2]
[327259682,1715943040391,-500.0,0.00012328,2]
[327259683,1715943040400,-500.0,0.00012328,2]
[327259684,1715943040408,-500.0,0.00012328,2]
[327259685,1715943040420,-500.0,0.00012328,2]
[327259686,1715943040429,-569.9,0.00012328,2]
[327259687,1715943040438,-500.0,0.00012328,2]
[327259688,1715943040447,-500.0,0.00012328,2]
[327259689,1715943040456,-500.0,0.00012328,2]
[327259690,1715943040466,-500.0,0.00012328,2]
[327259691,1715943040474,-500.0,0.00012328,2]
[327259692,1715943040484,-500.0,0.00012328,2]
[327259693,1715943040494,-500.0,0.00012328,2]
[327259694,1715943040503,-423.0506053,0.00012328,2]
[327259695,1715943040512,-606.82,0.00012328,2]
[327259696,1715943040521,-500.0,0.00012328,2]
[327259697,1715943040531,-500.0,0.00012328,2]
[327259698,1715943040540,-500.0,0.00012328,2]
[327259699,1715943040550,-500.0,0.00012328,2]
[327259700,1715943040560,-500.0,0.00012328,2]
[327259701,1715943040569,-500.0,0.00012328,2]
[327259702,1715943040578,-500.0,0.00012328,2]
[327259703,1715943040587,-500.0,0.00012328,2]
[327259704,1715943040596,-500.0,0.00012328,2]
[327259705,1715943040606,-500.0,0.00012328,2]
[327259706,1715943040615,-500.0,0.00012328,2]
[327259707,1715943040624,-417.81385542,0.00012328,2]
[327259708,1715943040633,-500.0,0.00012328,2]
[327259710,1715943040643,-500.0,0.00012328,2]
[327259712,1715943040652,-500.0,0.00012328,2]
[327259714,1715943040661,-500.0,0.00012328,2]
[327259715,1715943040672,-172.07409338,0.00012328,2]
[327259716,1715943040682,-511.47608199,0.00012328,2]
[327259717,1715943040691,-500.0,0.00012328,2]
[327259718,1715943040700,-500.0,0.00012328,2]
[327259719,1715943040709,-500.0,0.00012328,2]
[327259720,1715943040719,-518.96836765,0.00012328,2]
[327259721,1715943040728,-500.0,0.00012328,2]
[327259722,1715943040737,-500.0,0.00012328,2]
[327259723,1715943040747,-500.0,0.00012328,2]
[327259724,1715943040756,-522.72734658,0.00012328,2]
[327259725,1715943040765,-500.0,0.00012328,2]
[327259726,1715943040774,-500.0,0.00012328,2]
[327259727,1715943040784,-500.0,0.00012328,2]
[327259728,1715943040793,-500.0,0.00012328,2]
[327259729,1715943040802,-500.0,0.00012328,2]
[327259730,1715943040811,-500.0,0.00012328,2]
[327259731,1715943040820,-500.0,0.00012328,2]
[327259732,1715943040829,-500.0,0.00012328,2]
[327259733,1715943040838,-500.0,0.00012328,2]
[327259734,1715943040847,-500.0,0.00012328,2]
[327259735,1715943040857,-503.05415495,0.00012328,2]
[327259736,1715943040866,-500.0,0.00012328,2]
[327259737,1715943040875,-520.05264109,0.00012328,2]
[327259738,1715943040883,-455.53696116,0.00012328,2]
[327259739,1715943040892,-511.91065037,0.00012328,2]
[327259740,1715943040901,-500.0,0.00012328,2]
[327259741,1715943040911,-208.79644306,0.00012328,2]
[327259742,1715943040925,-500.0,0.00012328,2]
[327259743,1715943040934,-500.0,0.00012328,2]
[327259744,1715943040946,-516.68346631,0.00012328,2]
[327259745,1715943040955,-500.0,0.00012328,2]
[327259746,1715943040965,-500.0,0.00012328,2]
[327259747,1715943040975,-513.5531927,0.00012328,2]
[327259748,1715943040984,-254.30894129,0.00012328,2]
[327259749,1715943040993,-500.0,0.00012328,2]
[327259750,1715943041002,-500.0,0.00012328,2]
[327259751,1715943041011,-204.21785403,0.00012328,2]
[327259752,1715943041020,-500.0,0.00012328,2]
[327259753,1715943041030,-644.82458787,0.00012328,2]
[327259754,1715943041039,-500.0,0.00012328,2]
[327259755,1715943041049,-515.04811692,0.00012328,2]
[327259756,1715943041058,-512.50823449,0.00012328,2]
[327259757,1715943041067,-514.59001854,0.00012328,2]
[327259758,1715943041076,-500.0,0.00012328,2]
[327259759,1715943041087,-500.0,0.00012328,2]
[327259760,1715943041098,-500.0,0.00012328,2]
[327259761,1715943041107,-506.0464293,0.00012328,2]
[327259762,1715943041116,-512.36427387,0.00012328,2]
[327259763,1715943041127,-500.0,0.00012328,2]
[327259764,1715943041136,-519.80641367,0.00012328,2]
[327259765,1715943041145,-500.0,0.00012328,2]
[327259766,1715943041156,-500.0,0.00012328,2]
[327259767,1715943041170,-500.0,0.00012328,2]
[327259768,1715943041180,-500.0,0.00012328,2]
[327259769,1715943041190,-503.3407687,0.00012328,2]
[327259770,1715943041199,-500.0,0.00012328,2]
[327259771,1715943041208,-520.81382924,0.00012328,2]
[327259773,1715943041218,-500.0,0.00012328,2]
[327259774,1715943041227,-500.0,0.00012328,2]
[327259776,1715943041236,-519.55358187,0.00012328,2]
[327259778,1715943041246,-500.0,0.00012328,2]
[327259779,1715943041256,-512.85042929,0.00012328,2]
[327259780,1715943041266,-500.0,0.00012328,2]
[327259781,1715943041275,-500.0,0.00012328,2]
[327259782,1715943041284,-500.0,0.00012328,2]
[327259783,1715943041294,-520.89324991,0.00012328,2]
[327259784,1715943041303,-262.9101174,0.00012328,2]
[327259785,1715943041312,-500.0,0.00012328,2]
[327259786,1715943041322,-506.39371026,0.00012328,2]
[327259787,1715943041331,-500.0,0.00012328,2]
[327259788,1715943041340,-501.73394629,0.00012328,2]
[327259789,1715943041349,-500.0,0.00012328,2]
[327259790,1715943041359,-500.0,0.00012328,2]
[327259791,1715943041368,-500.0,0.00012328,2]
[327259792,1715943041377,-553.08,0.00012328,2]
[327259793,1715943041387,-500.0,0.00012328,2]
[327259794,1715943041396,-500.0,0.00012328,2]
[327259795,1715943041405,-500.0,0.00012328,2]
[327259796,1715943041416,-500.0,0.00012328,2]
[327259797,1715943041425,-500.0,0.00012328,2]
[327259798,1715943041434,-500.0,0.00012328,2]
[327259799,1715943041443,-500.0,0.00012328,2]
[327259800,1715943041452,-516.57304589,0.00012328,2]
[327259801,1715943041461,-522.26046197,0.00012328,2]
[327259802,1715943041471,-500.0,0.00012328,2]
[327259803,1715943041480,-500.0,0.00012328,2]
[327259804,1715943041489,-506.55612998,0.00012328,2]
[327259805,1715943041498,-500.0,0.00012328,2]
[327259806,1715943041507,-500.0,0.00012328,2]
[327259807,1715943041517,-500.0,0.00012328,2]
[327259808,1715943041526,-500.0,0.00012328,2]
[327259809,1715943041535,-500.0,0.00012328,2]
[327259810,1715943041544,-500.0,0.00012328,2]
[327259811,1715943041553,-607.42021237,0.00012328,2]
[327259812,1715943041563,-519.4910545,0.00012328,2]
[327259813,1715943041574,-500.0,0.00012328,2]
[327259814,1715943041583,-541.57949398,0.00012328,2]
[327259815,1715943041592,-500.0,0.00012328,2]
[327259816,1715943041601,-500.0,0.00012328,2]
[327259817,1715943041611,-500.0,0.00012328,2]
[327259818,1715943041620,-500.0,0.00012328,2]
[327259819,1715943041630,-500.0,0.00012328,2]
[327259820,1715943041639,-500.0,0.00012328,2]
[327259821,1715943041648,-500.0,0.00012328,2]
[327259822,1715943041657,-500.0,0.00012328,2]
[327259823,1715943041669,-500.0,0.00012328,2]
[327259824,1715943041678,-500.0,0.00012328,2]
[327259825,1715943041687,-500.0,0.00012328,2]
[327259826,1715943041696,-615.97,0.00012328,2]
[327259827,1715943041705,-500.0,0.00012328,2]
[327259828,1715943041713,-514.63568244,0.00012328,2]
[327259829,1715943041723,-500.0,0.00012328,2]
[327259830,1715943041733,-500.0,0.00012328,2]
[327259831,1715943041742,-500.0,0.00012328,2]
[327259832,1715943041751,-500.0,0.00012328,2]
[327259833,1715943041760,-500.0,0.00012328,2]
[327259834,1715943041769,-500.0,0.00012328,2]
[327259835,1715943041778,-500.0,0.00012328,2]
[327259836,1715943041788,-500.0,0.00012328,2]
[327259837,1715943041797,-500.0,0.00012328,2]
[327259838,1715943041805,-500.0,0.00012328,2]
[327259839,1715943041814,-633.72410508,0.00012328,2]
[327259840,1715943041824,-500.0,0.00012328,2]
[327259841,1715943041833,-500.0,0.00012328,2]
[327259842,1715943041842,-500.0,0.00012328,2]
[327259843,1715943041851,-500.0,0.00012328,2]
[327259844,1715943041860,-500.0,0.00012328,2]
[327259845,1715943041869,-500.0,0.00012328,2]
[327259846,1715943041879,-500.0,0.00012328,2]
[327259847,1715943041887,-646.0,0.00012328,2]
[327259848,1715943041896,-500.0,0.00012328,2]
[327259849,1715943041907,-500.0,0.00012328,2]
[327259850,1715943041918,-257.2,0.00012328,2]
[327259851,1715943041927,-500.0,0.00012328,2]
[327259852,1715943041936,-500.0,0.00012328,2]
[327259853,1715943041945,-500.0,0.00012328,2]
[327259854,1715943041955,-500.0,0.00012328,2]
[327259855,1715943041964,-500.0,0.00012328,2]
[327259856,1715943041973,-500.0,0.00012328,2]
[327259857,1715943041983,-294.77171669,0.00012328,2]
[327259858,1715943041992,-500.0,0.00012328,2]
[327259859,1715943042002,-523.37199664,0.00012328,2]
[327259860,1715943042012,-500.0,0.00012328,2]
[327259861,1715943042021,-500.0,0.00012328,2]
[327259862,1715943042032,-497.77610925,0.00012328,2]
[327259863,1715943042041,-500.0,0.00012328,2]
[327259864,1715943042051,-503.15825441,0.00012328,2]
[327259865,1715943042060,-500.0,0.00012328,2]
[327259866,1715943042070,-500.0,0.00012328,2]
[327259867,1715943042080,-604.63,0.00012328,2]
[327259868,1715943042093,-500.0,0.00012328,2]
[327259869,1715943042103,-500.0,0.00012328,2]
[327259870,1715943042113,-521.56585215,0.00012328,2]
[327259871,1715943042123,-500.0,0.00012328,2]
[327259872,1715943042138,-500.0,0.00012328,2]
[327259873,1715943042158,-157.54361506,0.00012328,2]
[327259874,1715943042178,-500.0,0.00012328,2]
[327259875,1715943042200,-500.0,0.00012328,2]
[327259876,1715943042223,-500.0,0.00012328,2]
[327259877,1715943042246,-500.0,0.00012328,2]
[327259878,1715943042267,-500.0,0.00012328,2]
[327259879,1715943042288,-500.0,0.00012328,2]
[327259880,1715943042310,-500.0,0.00012328,2]
[327259881,1715943042332,-500.0,0.00012328,2]
[327259882,1715943042352,-500.0,0.00012328,2]
[327259883,1715943042366,-500.0,0.00012328,2]
[327259884,1715943042376,-500.0,0.00012328,2]
[327259885,1715943042385,-500.0,0.00012328,2]
[327259886,1715943042394,-500.0,0.00012328,2]
[327259887,1715943042403,-500.0,0.00012328,2]
[327259888,1715943042413,-500.0,0.00012328,2]
[327259889,1715943042422,-500.0,0.00012328,2]
[327259890,1715943042431,-500.0,0.00012328,2]
[327259891,1715943042441,-500.0,0.00012328,2]
[327259892,1715943042450,-500.0,0.00012328,2]
[327259893,1715943042460,-500.0,0.00012328,2]
[327259894,1715943042470,-500.0,0.00012328,2]
[327259895,1715943042481,-500.0,0.00012328,2]
[327259896,1715943042490,-500.0,0.00012328,2]
[327259897,1715943042499,-348.5,0.00012328,2]
[327259898,1715943042509,-500.0,0.00012328,2]
[327259899,1715943042519,-529.44355164,0.00012328,2]
[327259900,1715943042528,-500.0,0.00012328,2]
[327259901,1715943042537,-500.0,0.00012328,2]
[327259902,1715943042546,-500.0,0.00012328,2]
[327259903,1715943042556,-500.0,0.00012328,2]
[327259904,1715943042564,-610.79328731,0.00012328,2]
[327259905,1715943042574,-500.0,0.00012328,2]
[327259906,1715943042583,-500.0,0.00012328,2]
[327259907,1715943042591,-500.0,0.00012328,2]
[327259908,1715943042601,-500.0,0.00012328,2]
[327259909,1715943042611,-500.0,0.00012328,2]
[327259910,1715943042621,-393.42,0.00012328,2]
[327259911,1715943042630,-500.0,0.00012328,2]
[327259912,1715943042639,-500.0,0.00012328,2]
[327259913,1715943042649,-500.0,0.00012328,2]
[327259914,1715943042658,-500.0,0.00012328,2]
[327259915,1715943042669,-500.0,0.00012328,2]
[327259916,1715943042678,-505.86,0.00012328,2]
[327259917,1715943042686,-500.0,0.00012328,2]
[327259918,1715943042695,-500.0,0.00012328,2]
[327259919,1715943042704,-491.69310247,0.00012328,2]
[327259920,1715943042713,-500.0,0.00012328,2]
[327259921,1715943042723,-500.0,0.00012328,2]
[327259922,1715943042732,-166.37049657,0.00012328,2]
[327259923,1715943042741,-500.0,0.00012328,2]
[327259924,1715943042750,-500.0,0.00012328,2]
[327259925,1715943042759,-500.0,0.00012328,2]
[327259926,1715943042768,-564.33,0.00012328,2]
[327259927,1715943042777,-500.0,0.00012328,2]
[327259928,1715943042786,-500.0,0.00012328,2]
[327259929,1715943042796,-544.7416914,0.00012328,2]
[327259930,1715943042805,-508.59920987,0.00012328,2]
[327259931,1715943042815,-500.0,0.00012328,2]
[327259932,1715943042824,-500.0,0.00012328,2]
[327259933,1715943042833,-502.66749081,0.00012328,2]
[327259934,1715943042842,-500.0,0.00012328,2]
[327259935,1715943042852,-500.0,0.00012328,2]
[327259936,1715943042861,-313.86751068,0.00012328,2]
[327259937,1715943042870,-500.0,0.00012328,2]
[327259938,1715943042880,-500.0,0.00012328,2]
[327259939,1715943042889,-500.0,0.00012328,2]
[327259940,1715943042899,-500.0,0.00012328,2]
[327259941,1715943042908,-500.0,0.00012328,2]
[327259942,1715943042919,-500.0,0.00012328,2]
[327259943,1715943042928,-504.73335963,0.00012328,2]
[327259944,1715943042936,-512.80451661,0.00012328,2]
[327259945,1715943042945,-521.2148819,0.00012328,2]
[327259946,1715943042955,-500.0,0.00012328,2]
[327259947,1715943042964,-500.0,0.00012328,2]
[327259948,1715943042974,-467.63,0.00012328,2]
[327259949,1715943042983,-500.0,0.00012328,2]
[327259950,1715943042993,-500.0,0.00012328,2]
[327259951,1715943043002,-500.9261746,0.00012328,2]
[327259952,1715943043011,-500.0,0.00012328,2]
[327259953,1715943043020,-500.0,0.00012328,2]
[327259954,1715943043030,-413.7878555,0.00012328,2]
[327259955,1715943043040,-500.0,0.00012328,2]
[327259956,1715943043049,-500.0,0.00012328,2]
[327259957,1715943043059,-500.0,0.00012328,2]
[327259958,1715943043068,-519.4540347,0.00012328,2]
[327259959,1715943043078,-500.0,0.00012328,2]
[327259960,1715943043092,-500.0,0.00012328,2]
[327259961,1715943043102,-500.0,0.00012328,2]
[327259962,1715943043113,-500.0,0.00012328,2]
[327259963,1715943043123,-500.0,0.00012328,2]
[327259964,1715943043134,-473.35846454,0.00012328,2]
[327259965,1715943043143,-509.58140271,0.00012328,2]
[327259966,1715943043153,-500.0,0.00012328,2]
[327259967,1715943043163,-225.27369388,0.00012328,2]
[327259968,1715943043174,-500.0,0.00012328,2]
[327259969,1715943043184,-500.0,0.00012328,2]
[327259970,1715943043193,-520.69555154,0.00012328,2]
[327259971,1715943043202,-500.0,0.00012328,2]
[327259972,1715943043212,-646.47427008,0.00012328,2]
[327259973,1715943043222,-500.0,0.00012328,2]
[327259974,1715943043231,-500.0,0.00012328,2]
[327259975,1715943043241,-627.22591688,0.00012328,2]
[327259976,1715943043250,-500.0,0.00012328,2]
[327259977,1715943043260,-500.0,0.00012328,2]
[327259978,1715943043270,-500.0,0.00012328,2]
[327259979,1715943043279,-500.0,0.00012328,2]
[327259980,1715943043289,-500.0,0.00012328,2]
[327259981,1715943043298,-500.0,0.00012328,2]
[327259982,1715943043307,-500.0,0.00012328,2]
[327259983,1715943043317,-500.0,0.00012328,2]
[327259984,1715943043327,-500.0,0.00012328,2]
[327259985,1715943043337,-525.39,0.00012328,2]
[327259986,1715943043347,-500.0,0.00012328,2]
[327259987,1715943043357,-500.0,0.00012328,2]
[327259988,1715943043367,-500.0,0.00012328,2]
[327259989,1715943043376,-500.0,0.00012328,2]
[327259990,1715943043386,-500.0,0.00012328,2]
[327259991,1715943043395,-500.0,0.00012328,2]
[327259992,1715943043404,-500.0,0.00012328,2]
[327259993,1715943043414,-500.0,0.00012328,2]
[327259994,1715943043423,-234.12183321,0.00012328,2]
[327259995,1715943043433,-500.0,0.00012328,2]
[327259996,1715943043442,-500.0,0.00012328,2]
[327260000,1715943043586,-500.0,0.00012328,2]
[327260004,1715943043661,-154.56599497,0.00012328,2]
[327260016,1715943043967,-196.87900484,0.00012328,2]
[327260017,1715943043977,-500.0,0.00012328,2]
[327260018,1715943043986,-500.0,0.00012328,2]
[327260019,1715943043996,-500.96343235,0.00012328,2]
[327260020,1715943044005,-500.0,0.00012328,2]
[327260021,1715943044015,-500.0,0.00012328,2]
[327260022,1715943044024,-500.0,0.00012328,2]
[327260023,1715943044033,-561.07,0.00012328,2]
[327260024,1715943044043,-500.0,0.00012328,2]
[327260025,1715943044052,-630.43512091,0.00012328,2]
[327260026,1715943044061,-500.0,0.00012328,2]
[327260027,1715943044070,-500.0,0.00012328,2]
[327260028,1715943044080,-500.0,0.00012328,2]
[327260029,1715943044092,-500.0,0.00012328,2]
[327260030,1715943044102,-500.0,0.00012328,2]
[327260031,1715943044111,-500.0,0.00012328,2]
[327260032,1715943044121,-554.67817859,0.00012328,2]
[327260033,1715943044131,-500.0,0.00012328,2]
[327260034,1715943044141,-500.0,0.00012328,2]
[327260035,1715943044154,-500.0,0.00012328,2]
[327260037,1715943044165,-500.0,0.00012328,2]
[327260038,1715943044176,-500.0,0.00012328,2]
[327260039,1715943044188,-500.0,0.00012328,2]
[327260040,1715943044197,-271.33827476,0.00012328,2]
[327260041,1715943044207,-500.0,0.00012328,2]
[327260042,1715943044218,-500.0,0.00012328,2]
[327260043,1715943044227,-500.0,0.00012328,2]
[327260044,1715943044237,-500.0,0.00012328,2]
[327260045,1715943044247,-515.71858984,0.00012328,2]
[327260046,1715943044256,-500.0,0.00012328,2]
[327260047,1715943044266,-500.0,0.00012328,2]
[327260048,1715943044276,-500.0,0.00012328,2]
[327260049,1715943044287,-500.0,0.00012328,2]
[327260050,1715943044297,-500.0,0.00012328,2]
[327260051,1715943044308,-500.0,0.00012328,2]
[327260052,1715943044317,-536.45406338,0.00012328,2]
[327260053,1715943044327,-521.07363622,0.00012328,2]
[327260054,1715943044337,-500.0,0.00012328,2]
[327260055,1715943044346,-500.0,0.00012328,2]
[327260056,1715943044356,-516.4519082,0.00012328,2]
[327260057,1715943044366,-500.0,0.00012328,2]
[327260058,1715943044375,-500.0,0.00012328,2]
[327260059,1715943044385,-500.0,0.00012328,2]
[327260060,1715943044395,-500.0,0.00012328,2]
[327260061,1715943044404,-500.0,0.00012328,2]
[327260062,1715943044413,-500.0,0.00012328,2]
[327260063,1715943044423,-500.0,0.00012328,2]
[327260064,1715943044433,-500.0,0.00012328,2]
[327260065,1715943044442,-500.0,0.00012328,2]
[327260066,1715943044452,-500.0,0.00012328,2]
[327260067,1715943044461,-500.0,0.00012328,2]
[327260068,1715943044472,-500.0,0.00012328,2]
[327260069,1715943044482,-500.0,0.00012328,2]
[327260070,1715943044491,-500.0,0.00012328,2]
[327260071,1715943044501,-362.2893167,0.00012328,2]
[327260072,1715943044510,-155.23344087,0.00012328,2]
[327260073,1715943044520,-500.0,0.00012328,2]
[327260074,1715943044529,-500.0,0.00012328,2]
[327260075,1715943044539,-362.96,0.00012328,2]
[327260076,1715943044548,-500.0,0.00012328,2]
[327260077,1715943044558,-500.0,0.00012328,2]
[327260078,1715943044567,-500.0,0.00012328,2]
[327260079,1715943044577,-500.0,0.00012328,2]
[327260080,1715943044586,-500.0,0.00012328,2]
[327260081,1715943044599,-500.0,0.00012328,2]
[327260082,1715943044608,-500.0,0.00012328,2]
[327260083,1715943044617,-500.0,0.00012328,2]
[327260084,1715943044627,-500.0,0.00012328,2]
[327260085,1715943044636,-500.0,0.00012328,2]
[327260086,1715943044646,-481.84754931,0.00012328,2]
[327260087,1715943044656,-500.0,0.00012328,2]
[327260088,1715943044666,-196.01024764,0.00012328,2]
[327260089,1715943044675,-500.0,0.00012328,2]
[327260090,1715943044684,-500.0,0.00012328,2]
[327260091,1715943044694,-500.0,0.00012328,2]
[327260092,1715943044704,-500.0,0.00012328,2]
[327260093,1715943044714,-500.0,0.00012328,2]
[327260094,1715943044723,-268.88,0.00012328,2]
[327260095,1715943044734,-401.71803907,0.00012328,2]
[327260096,1715943044744,-500.0,0.00012328,2]
[327260097,1715943044755,-427.01,0.00012328,2]
[327260098,1715943044765,-500.0,0.00012328,2]
[327260099,1715943044775,-500.0,0.00012328,2]
[327260100,1715943044784,-562.72,0.00012328,2]
[327260101,1715943044794,-500.0,0.00012328,2]
[327260102,1715943044803,-507.79870583,0.00012328,2]
[327260103,1715943044813,-500.0,0.00012328,2]
[327260104,1715943044824,-500.0,0.00012328,2]
[327260105,1715943044834,-500.0,0.00012328,2]
[327260106,1715943044844,-500.0,0.00012328,2]
[327260107,1715943044855,-520.88719905,0.00012328,2]
[327260108,1715943044865,-500.0,0.00012328,2]
[327260109,1715943044875,-500.0,0.00012328,2]
[327260110,1715943044884,-500.0,0.00012328,2]
[327260111,1715943044894,-500.0,0.00012328,2]
[327260112,1715943044904,-649.53,0.00012328,2]
[327260113,1715943044913,-500.0,0.00012328,2]
[327260114,1715943044923,-500.0,0.00012328,2]
[327260115,1715943044932,-500.0,0.00012328,2]
[327260116,1715943044942,-516.88085868,0.00012328,2]
[327260117,1715943044951,-500.0,0.00012328,2]
[327260118,1715943044960,-528.3,0.00012328,2]
[327260119,1715943044969,-500.0,0.00012328,2]
[327260120,1715943044978,-519.78875033,0.00012328,2]
[327260121,1715943044987,-500.0,0.00012328,2]
[327260122,1715943044997,-500.0,0.00012328,2]
[327260123,1715943045007,-645.94008006,0.00012328,2]
[327260124,1715943045016,-500.0,0.00012328,2]
[327260125,1715943045026,-500.0,0.00012328,2]
[327260126,1715943045036,-500.0,0.00012328,2]
[327260127,1715943045046,-500.0,0.00012328,2]